{"text_format":"3","workbook":"xlsx","n_sheets":2,"sheets":["ALGUS","AASTA AJATABEL"],"not_rendered":{"defined_names":2},"read":"whole","date_system":"1900"}

{"sheet":"ALGUS","index":0,"n_rows":8,"n_cols":2,"rows_kept":8}
[null,"TEAVE SELLE MALLI KOHTA"]
[null,"Pidage Töötaja ajatabel kaardi abil päeva, nädalapäeva, kuu ja aasta töötundide üle arvet."]
[null,"Sisestage põhiteave nagu töötaja nimi, juhataja nimi, meiliaadress ja telefoninumber. "]
[null,"Lisage oma töötunnid iga kuu tabelisse. Märkige iga nädala iga nädalapäeva juures üles korralised töötunnid ja ületunnid. "]
[null,"Väljad Töötunnid kokku, Korralised töötunnid ja Ületunnid arvutatakse automaatselt. "]
[null,"Märkmed:"]
[null,"Täiendavad juhised leiate töölehe AASTA AJATABEL veerust A. See tekst on tahtlikult peidetud. Teksti eemaldamiseks valige veerg A ja seejärel käsk KUSTUTA. Teksti kuvamiseks valige veerg A ja muutke seejärel fondi värvi. "]
[null,"Tabelite kohta lisateabe saamiseks vajutage tabelis TÕSTUKLAHVI (Shift) ja seejärel klahvi F10, valige TABEL suvand ja seejärel käsk ASETEKST."]

{"sheet":"AASTA AJATABEL","index":1,"n_rows":132,"n_cols":15,"rows_kept":132,"merged":[[0,1,0,2],[0,4,0,14],[10,6,10,7],[21,6,21,7],[32,6,32,7],[33,4,33,14],[43,6,43,7],[54,6,54,7],[65,6,65,7],[66,4,66,14],[76,6,76,7],[87,6,87,7],[98,6,98,7],[99,4,99,14],[109,6,109,7],[120,6,120,7],[131,6,131,7]]}
["Siin töölehel saate luua päeva, nädala, kuu või aasta kohta käiva töötaja ajatabeli. \nTöövihiku kasutamise kohta käivad kasulikud juhised leiate selle töövihiku veergudest. Liikuge alustamiseks noolega alla.\nParemal olevas lahtris on selle töölehe pealkiri ja jaanuar, veebruar, märts kvartali pealkiri on lahtris E1.","TÖÖTAJA \nAJATABEL",null,null,"Jaanuar, veebruar, märts      Töötaja ajatabel: päevas, nädalas, kuus, aastas"]
["Sisestage lahtrisse C2 töötaja nimi ning korralised töötunnid ning ületunnid lahtrist E2 algavasse jaanuar tabelisse.","Töötaja nimi:",null,null,"Jaanuar","1. nädal","Ületunnid","2. nädal","Ületunnid  ","3. nädal","Ületunnid   ","4. nädal","Ületunnid    ","5. nädal","Ületunnid     "]
["Sisestage lahtrisse C3 juhataja nimi.","Juhataja:",null,null,"Esmaspäev",{"v":8,"d":"8.0"}]
["Sisestage lahtrisse C4 meiliaadress.","Meiliaadress:",null,null,"Teisipäev",{"v":8,"d":"8.0"},{"v":2,"d":"2.0"}]
["Sisestage lahtrisse C5 telefon number. Järgmised juhised on toodud lahtris A9.","Telefon:",null,null,"Kolmapäev"]
[{"$nulls":4},"Neljapäev"]
[{"$nulls":4},"Reede"]
[{"$nulls":4},"Laupäev"]
["Lahtris C9 arvutatakse automaatselt aastane korraliste töötundide koguarv.","Korralised tunnid:",{"$f":"Korralised_tunnid","v":31},null,"Pühapäev"]
["Lahtris C10 arvutatakse automaatselt aastane ületundide koguarv.","Ületunnid:",{"$f":"Ületunnid","v":4},null,"Nädala töötunnid kokku",{"$f":"SUM(F3:F9)","v":{"v":16,"d":"16.0"}},{"v":2,"d":"2.0"},{"v":0,"d":"0.0"},{"v":0,"d":"0.0"},{"v":0,"d":"0.0"},{"v":0,"d":"0.0"},{"v":0,"d":"0.0"},{"v":0,"d":"0.0"},{"v":0,"d":"0.0"},{"v":0,"d":"0.0"}]
["Lahtris C11 arvutatakse automaatselt aastane ületundide üldine koguarv. Jaanuari korraliste töötundide koguarv arvutatakse automaatselt lahtris F11 ning jaanuari ületundide koguarv lahtris I11. Järgmised juhised on toodud lahtris A13.","Kokku",{"$f":"Korralised_tunnid+Ületunnid","v":35},null,{"$f":"TEXT(DATEVALUE(Jaanuar[[#Headers],[Jaanuar]]&\"  \"&YEAR(TODAY())),\"mmm.\")&\" kokku: Korralised tunnid\"","v":"jaan. kokku: Korralised tunnid"},{"$f":"SUM(Jaanuar[1. nädal],Jaanuar[2. nädal],Jaanuar[3. nädal],Jaanuar[4. nädal],Jaanuar[5. nädal])","v":{"v":16,"d":"16.0"}},{"$f":"TEXT(DATEVALUE(Jaanuar[[#Headers],[Jaanuar]]&\"  \"&YEAR(TODAY())),\"mmm.\")&\" kokku: Ületunnid\"","v":"jaan. kokku: Ületunnid"},null,{"$f":"SUM(Jaanuar[Ületunnid],Jaanuar[[Ületunnid  ]],Jaanuar[[Ületunnid   ]],Jaanuar[[Ületunnid    ]],Jaanuar[[Ületunnid     ]])","v":{"v":2,"d":"2.0"}}]
[]
["Sisestage korraliste töötundide ja ületundide arv veebruar tabelisse, mis algab lahtris E13. Järgmised juhised on toodud lahtris A22.",{"$nulls":3},"Veebruar","1. nädal","Ületunnid","2. nädal","Ületunnid  ","3. nädal","Ületunnid   ","4. nädal","Ületunnid    ","5. nädal","Ületunnid     "]
[{"$nulls":4},"Esmaspäev",{"v":8,"d":"8.0"}]
[{"$nulls":4},"Teisipäev",{"v":7,"d":"7.0"},{"v":2,"d":"2.0"}]
[{"$nulls":4},"Kolmapäev"]
[{"$nulls":4},"Neljapäev"]
[{"$nulls":4},"Reede"]
[{"$nulls":4},"Laupäev"]
[{"$nulls":4},"Pühapäev"]
[{"$nulls":4},"Nädala töötunnid kokku",{"$f":"SUM(F14:F20)","v":{"v":15,"d":"15.0"}},{"v":2,"d":"2.0"},{"v":0,"d":"0.0"},{"v":0,"d":"0.0"},{"v":0,"d":"0.0"},{"v":0,"d":"0.0"},{"v":0,"d":"0.0"},{"v":0,"d":"0.0"},{"v":0,"d":"0.0"},{"v":0,"d":"0.0"}]
["Veebruari korraliste töötundide koguarv arvutatakse automaatselt lahtris F22 ning veebruari ületundide koguarv lahtris I22. Järgmised juhised on toodud lahtris A24.",{"$nulls":3},{"$f":"TEXT(DATEVALUE(Veebruar[[#Headers],[Veebruar]]&\"  \"&YEAR(TODAY())),\"mmm.\")&\" kokku: Korralised tunnid\"","v":"veebr. kokku: Korralised tunnid"},{"$f":"SUM(Veebruar[1. nädal],Veebruar[2. nädal],Veebruar[3. nädal],Veebruar[4. nädal],Veebruar[5. nädal])","v":{"v":15,"d":"15.0"}},{"$f":"TEXT(DATEVALUE(Veebruar[[#Headers],[Veebruar]]&\" \"&YEAR(TODAY())),\"mmm.\")&\" kokku: Ületunnid\"","v":"veebr. kokku: Ületunnid"},null,{"$f":"SUM(Veebruar[Ületunnid],Veebruar[[Ületunnid  ]],Veebruar[[Ületunnid   ]],Veebruar[[Ületunnid    ]],Veebruar[[Ületunnid     ]])","v":{"v":2,"d":"2.0"}}]
[]
["Sisestage korraliste töötundide ja ületundide arv märts tabelisse, mis algab lahtris E24. Järgmised juhised on toodud lahtris A33.",{"$nulls":3},"Märts","1. nädal","Ületunnid","2. nädal","Ületunnid ","3. nädal","Ületunnid  ","4. nädal","Ületunnid    ","5. nädal","Ületunnid     "]
[{"$nulls":4},"Esmaspäev"]
[{"$nulls":4},"Teisipäev"]
[{"$nulls":4},"Kolmapäev"]
[{"$nulls":4},"Neljapäev"]
[{"$nulls":4},"Reede"]
[{"$nulls":4},"Laupäev"]
[{"$nulls":4},"Pühapäev"]
[{"$nulls":4},"Nädala töötunnid kokku",{"$f":"SUM(F25:F31)","v":{"v":0,"d":"0.0"}},{"v":0,"d":"0.0"},{"v":0,"d":"0.0"},{"v":0,"d":"0.0"},{"v":0,"d":"0.0"},{"v":0,"d":"0.0"},{"v":0,"d":"0.0"},{"v":0,"d":"0.0"},{"v":0,"d":"0.0"},{"v":0,"d":"0.0"}]
["Märtsi korraliste töötundide koguarv arvutatakse automaatselt lahtris F33 ning märtsi ületundide koguarv lahtris I33.",{"$nulls":3},{"$f":"TEXT(DATEVALUE(Märts[[#Headers],[Märts]]&\" \"&YEAR(TODAY())),\"mmm.\")&\" kokku: Korralised tunnid\"","v":"märts. kokku: Korralised tunnid"},{"$f":"SUM(Märts[1. nädal],Märts[2. nädal],Märts[3. nädal],Märts[4. nädal],Märts[5. nädal])","v":{"v":0,"d":"0.0"}},{"$f":"TEXT(DATEVALUE(Märts[[#Headers],[Märts]]&\" \"&YEAR(TODAY())),\"mmm.\")&\" kokku: Ületunnid\"","v":"märts. kokku: Ületunnid"},null,{"$f":"SUM(Märts[Ületunnid],Märts[[Ületunnid ]],Märts[[Ületunnid  ]],Märts[[Ületunnid    ]],Märts[[Ületunnid     ]])","v":{"v":0,"d":"0.0"}}]
["Aprilli, mai, juuni teise kvartali pealkiri on lahtris E34. ",{"$nulls":3},"Aprill, mai, juuni      Töötaja ajatabel: päevas, nädalas, kuus, aastas"]
["Sisestage korraliste töötundide ja ületundide arv aprill tabelisse, mis algab lahtris E35. Järgmised juhised on toodud lahtris A44.",{"$nulls":3},"Aprill","1. nädal","Ületunnid","2. nädal","Ületunnid  ","3. nädal","Ületunnid   ","4. nädal","Ületunnid    ","5. nädal","Ületunnid     "]
[{"$nulls":4},"Esmaspäev"]
[{"$nulls":4},"Teisipäev"]
[{"$nulls":4},"Kolmapäev"]
[{"$nulls":4},"Neljapäev"]
[{"$nulls":4},"Reede"]
[{"$nulls":4},"Laupäev"]
[{"$nulls":4},"Pühapäev"]
[{"$nulls":4},"Nädala töötunnid kokku",{"$f":"SUM(F36:F42)","v":{"v":0,"d":"0.0"}},{"v":0,"d":"0.0"},{"v":0,"d":"0.0"},{"v":0,"d":"0.0"},{"v":0,"d":"0.0"},{"v":0,"d":"0.0"},{"v":0,"d":"0.0"},{"v":0,"d":"0.0"},{"v":0,"d":"0.0"},{"v":0,"d":"0.0"}]
["Aprilli korraliste töötundide koguarv arvutatakse automaatselt lahtris F44 ning aprilli ületundide koguarv lahtris I44. Järgmised juhised on toodud lahtris A46.",{"$nulls":3},{"$f":"TEXT(DATEVALUE(Aprill[[#Headers],[Aprill]]&\" \"&YEAR(TODAY())),\"mmm.\")&\" kokku: Korralised tunnid\"","v":"apr. kokku: Korralised tunnid"},{"$f":"SUM(Aprill[1. nädal],Aprill[2. nädal],Aprill[3. nädal],Aprill[4. nädal],Aprill[5. nädal])","v":{"v":0,"d":"0.0"}},{"$f":"TEXT(DATEVALUE(Aprill[[#Headers],[Aprill]]&\" \"&YEAR(TODAY())),\"mmm.\")&\" kokku: Ületunnid\"","v":"apr. kokku: Ületunnid"},null,{"$f":"SUM(Aprill[Ületunnid],Aprill[[Ületunnid  ]],Aprill[[Ületunnid   ]],Aprill[[Ületunnid    ]],Aprill[[Ületunnid     ]])","v":{"v":0,"d":"0.0"}}]
[]
["Sisestage korraliste töötundide ja ületundide arv mai tabelisse, mis algab lahtris E46. Järgmised juhised on toodud lahtris A55.",{"$nulls":3},"Mai","1. nädal","Ületunnid","2. nädal","Ületunnid  ","3. nädal","Ületunnid   ","4. nädal","Ületunnid    ","5. nädal","Ületunnid     "]
[{"$nulls":4},"Esmaspäev"]
[{"$nulls":4},"Teisipäev"]
[{"$nulls":4},"Kolmapäev"]
[{"$nulls":4},"Neljapäev"]
[{"$nulls":4},"Reede"]
[{"$nulls":4},"Laupäev"]
[{"$nulls":4},"Pühapäev"]
[{"$nulls":4},"Nädala töötunnid kokku",{"$f":"SUM(F47:F53)","v":{"v":0,"d":"0.0"}},{"v":0,"d":"0.0"},{"v":0,"d":"0.0"},{"v":0,"d":"0.0"},{"v":0,"d":"0.0"},{"v":0,"d":"0.0"},{"v":0,"d":"0.0"},{"v":0,"d":"0.0"},{"v":0,"d":"0.0"},{"v":0,"d":"0.0"}]
["Mai korraliste töötundide koguarv arvutatakse automaatselt lahtris F55 ning mai ületundide koguarv lahtris I55. Järgmised juhised on toodud lahtris A57.",{"$nulls":3},{"$f":"TEXT(DATEVALUE(Mai[[#Headers],[Mai]]&\" \"&YEAR(TODAY())),\"mmm.\")&\" kokku: Korralised tunnid\"","v":"mai. kokku: Korralised tunnid"},{"$f":"SUM(Mai[1. nädal],Mai[2. nädal],Mai[3. nädal],Mai[4. nädal],Mai[5. nädal])","v":{"v":0,"d":"0.0"}},{"$f":"TEXT(DATEVALUE(Mai[[#Headers],[Mai]]&\" \"&YEAR(TODAY())),\"mmm.\")&\" kokku: Ületunnid\"","v":"mai. kokku: Ületunnid"},null,{"$f":"SUM(Mai[Ületunnid],Mai[[Ületunnid  ]],Mai[[Ületunnid   ]],Mai[[Ületunnid    ]],Mai[[Ületunnid     ]])","v":{"v":0,"d":"0.0"}}]
[]
["Sisestage korraliste töötundide ja ületundide arv juuni tabelisse, mis algab lahtris E57. Järgmised juhised on toodud lahtris A66.",{"$nulls":3},"Juuni","1. nädal","Ületunnid","2. nädal","Ületunnid  ","3. nädal","Ületunnid   ","4. nädal","Ületunnid    ","5. nädal","Ületunnid     "]
[{"$nulls":4},"Esmaspäev"]
[{"$nulls":4},"Teisipäev"]
[{"$nulls":4},"Kolmapäev"]
[{"$nulls":4},"Neljapäev"]
[{"$nulls":4},"Reede"]
[{"$nulls":4},"Laupäev"]
[{"$nulls":4},"Pühapäev"]
[{"$nulls":4},"Nädala töötunnid kokku",{"$f":"SUM(F58:F64)","v":{"v":0,"d":"0.0"}},{"v":0,"d":"0.0"},{"v":0,"d":"0.0"},{"v":0,"d":"0.0"},{"v":0,"d":"0.0"},{"v":0,"d":"0.0"},{"v":0,"d":"0.0"},{"v":0,"d":"0.0"},{"v":0,"d":"0.0"},{"v":0,"d":"0.0"}]
["Juuni korraliste töötundide koguarv arvutatakse automaatselt lahtris F66 ning juuni ületundide koguarv lahtris I66.",{"$nulls":3},{"$f":"TEXT(DATEVALUE(Juuni[[#Headers],[Juuni]]&\" \"&YEAR(TODAY())),\"mmm.\")&\" kokku: Korralised tunnid\"","v":"juuni. kokku: Korralised tunnid"},{"$f":"SUM(Juuni[1. nädal],Juuni[2. nädal],Juuni[3. nädal],Juuni[4. nädal],Juuni[5. nädal])","v":{"v":0,"d":"0.0"}},{"$f":"TEXT(DATEVALUE(Juuni[[#Headers],[Juuni]]&\" \"&YEAR(TODAY())),\"mmm.\")&\" kokku: Ületunnid\"","v":"juuni. kokku: Ületunnid"},null,{"$f":"SUM(Juuni[Ületunnid],Juuni[[Ületunnid  ]],Juuni[[Ületunnid   ]],Juuni[[Ületunnid    ]],Juuni[[Ületunnid     ]])","v":{"v":0,"d":"0.0"}}]
["Juuli, augusti, septembri kolmanda kvartali pealkiri on lahtris E67. ",{"$nulls":3},"Juuli, August, September      Töötaja ajatabel: päevas, nädalas, kuus, aastas"]
["Sisestage korraliste töötundide ja ületundide arv juuli tabelisse, mis algab lahtris E68. Järgmised juhised on toodud lahtris A77.",{"$nulls":3},"Juuli","1. nädal","Ületunnid","2. nädal","Ületunnid ","3. nädal","Ületunnid  ","4. nädal","Ületunnid   ","5. nädal","Ületunnid     "]
[{"$nulls":4},"Esmaspäev"]
[{"$nulls":4},"Teisipäev"]
[{"$nulls":4},"Kolmapäev"]
[{"$nulls":4},"Neljapäev"]
[{"$nulls":4},"Reede"]
[{"$nulls":4},"Laupäev"]
[{"$nulls":4},"Pühapäev"]
[{"$nulls":4},"Nädala töötunnid kokku",{"$f":"SUM(F69:F75)","v":{"v":0,"d":"0.0"}},{"v":0,"d":"0.0"},{"v":0,"d":"0.0"},{"v":0,"d":"0.0"},{"v":0,"d":"0.0"},{"v":0,"d":"0.0"},{"v":0,"d":"0.0"},{"v":0,"d":"0.0"},{"v":0,"d":"0.0"},{"v":0,"d":"0.0"}]
["Juuli korraliste töötundide koguarv arvutatakse automaatselt lahtris F77 ning juuli ületundide koguarv lahtris I77. Järgmised juhised on toodud lahtris A79.",{"$nulls":3},{"$f":"TEXT(DATEVALUE(Juuli[[#Headers],[Juuli]]&\" \"&YEAR(TODAY())),\"mmm.\")&\" kokku: Korralised tunnid\"","v":"juuli. kokku: Korralised tunnid"},{"$f":"SUM(Juuli[1. nädal],Juuli[2. nädal],Juuli[3. nädal],Juuli[4. nädal],Juuli[5. nädal])","v":{"v":0,"d":"0.0"}},{"$f":"TEXT(DATEVALUE(Juuli[[#Headers],[Juuli]]&\" \"&YEAR(TODAY())),\"mmm.\")&\" kokku: Ületunnid\"","v":"juuli. kokku: Ületunnid"},null,{"$f":"SUM(Juuli[Ületunnid],Juuli[[Ületunnid ]],Juuli[[Ületunnid  ]],Juuli[[Ületunnid   ]],Juuli[[Ületunnid     ]])","v":{"v":0,"d":"0.0"}}]
[]
["Sisestage korraliste töötundide ja ületundide arv august tabelisse, mis algab lahtris E79. Järgmised juhised on toodud lahtris A88.",{"$nulls":3},"August","1. nädal","Ületunnid","2. nädal","Ületunnid ","3. nädal","Ületunnid   ","4. nädal","Ületunnid  ","5. nädal","Ületunnid    "]
[{"$nulls":4},"Esmaspäev"]
[{"$nulls":4},"Teisipäev"]
[{"$nulls":4},"Kolmapäev"]
[{"$nulls":4},"Neljapäev"]
[{"$nulls":4},"Reede"]
[{"$nulls":4},"Laupäev"]
[{"$nulls":4},"Pühapäev"]
[{"$nulls":4},"Nädala töötunnid kokku",{"$f":"SUBTOTAL(109,August[1. nädal])","v":{"v":0,"d":"0.0"}},{"$f":"SUBTOTAL(109,August[Ületunnid])","v":{"v":0,"d":"0.0"}},{"$f":"SUBTOTAL(109,August[2. nädal])","v":{"v":0,"d":"0.0"}},{"$f":"SUBTOTAL(109,August[[Ületunnid ]])","v":{"v":0,"d":"0.0"}},{"$f":"SUBTOTAL(109,August[3. nädal])","v":{"v":0,"d":"0.0"}},{"$f":"SUBTOTAL(109,August[[Ületunnid   ]])","v":{"v":0,"d":"0.0"}},{"$f":"SUBTOTAL(109,August[4. nädal])","v":{"v":0,"d":"0.0"}},{"$f":"SUBTOTAL(109,August[[Ületunnid  ]])","v":{"v":0,"d":"0.0"}},{"$f":"SUBTOTAL(109,August[5. nädal])","v":{"v":0,"d":"0.0"}},{"$f":"SUBTOTAL(109,August[[Ületunnid    ]])","v":{"v":0,"d":"0.0"}}]
["Augusti korraliste töötundide koguarv arvutatakse automaatselt lahtris F88 ning augusti ületundide koguarv lahtris I88. Järgmised juhised on toodud lahtris A90.",{"$nulls":3},{"$f":"TEXT(DATEVALUE(August[[#Headers],[August]]&\" \"&YEAR(TODAY())),\"mmm.\")&\" kokku: Korralised tunnid\"","v":"aug. kokku: Korralised tunnid"},{"$f":"SUM(August[1. nädal],August[2. nädal],August[3. nädal],August[4. nädal],August[5. nädal])","v":{"v":0,"d":"0.0"}},{"$f":"TEXT(DATEVALUE(August[[#Headers],[August]]&\" \"&YEAR(TODAY())),\"mmm.\")&\" kokku: Ületunnid\"","v":"aug. kokku: Ületunnid"},null,{"$f":"SUM(August[Ületunnid],August[[Ületunnid ]],August[[Ületunnid   ]],August[[Ületunnid  ]],August[[Ületunnid    ]])","v":{"v":0,"d":"0.0"}}]
[]
["Sisestage korraliste töötundide ja ületundide arv september tabelisse, mis algab lahtris E90. Järgmised juhised on toodud lahtris A99.",{"$nulls":3},"September","1. nädal","Ületunnid","2. nädal","Ületunnid ","3. nädal","Ületunnid  ","4. nädal","Ületunnid   ","5. nädal","Ületunnid    "]
[{"$nulls":4},"Esmaspäev"]
[{"$nulls":4},"Teisipäev"]
[{"$nulls":4},"Kolmapäev"]
[{"$nulls":4},"Neljapäev"]
[{"$nulls":4},"Reede"]
[{"$nulls":4},"Laupäev"]
[{"$nulls":4},"Pühapäev"]
[{"$nulls":4},"Nädala töötunnid kokku",{"$f":"SUBTOTAL(109,September[1. nädal])","v":{"v":0,"d":"0.0"}},{"$f":"SUBTOTAL(109,September[Ületunnid])","v":{"v":0,"d":"0.0"}},{"$f":"SUBTOTAL(109,September[2. nädal])","v":{"v":0,"d":"0.0"}},{"$f":"SUBTOTAL(109,September[[Ületunnid ]])","v":{"v":0,"d":"0.0"}},{"$f":"SUBTOTAL(109,September[3. nädal])","v":{"v":0,"d":"0.0"}},{"$f":"SUBTOTAL(109,September[[Ületunnid  ]])","v":{"v":0,"d":"0.0"}},{"$f":"SUBTOTAL(109,September[4. nädal])","v":{"v":0,"d":"0.0"}},{"$f":"SUBTOTAL(109,September[[Ületunnid   ]])","v":{"v":0,"d":"0.0"}},{"$f":"SUBTOTAL(109,September[5. nädal])","v":{"v":0,"d":"0.0"}},{"$f":"SUBTOTAL(109,September[[Ületunnid    ]])","v":{"v":0,"d":"0.0"}}]
["Septembri korraliste töötundide koguarv arvutatakse automaatselt lahtris F99 ning septembri ületundide koguarv lahtris I99.",{"$nulls":3},{"$f":"TEXT(DATEVALUE(September[[#Headers],[September]]&\" \"&YEAR(TODAY())),\"mmm.\")&\" kokku: Korralised tunnid\"","v":"sept. kokku: Korralised tunnid"},{"$f":"SUM(September[1. nädal],September[2. nädal],September[3. nädal],September[4. nädal],September[5. nädal])","v":{"v":0,"d":"0.0"}},{"$f":"TEXT(DATEVALUE(September[[#Headers],[September]]&\" \"&YEAR(TODAY())),\"mmm.\")&\" kokku: Ületunnid\"","v":"sept. kokku: Ületunnid"},null,{"$f":"SUM(September[Ületunnid],September[[Ületunnid ]],September[[Ületunnid  ]],September[[Ületunnid   ]],September[[Ületunnid    ]])","v":{"v":0,"d":"0.0"}}]
["Oktoobri, novembri, detsembri neljanda kvartali pealkiri on lahtris E100. ",{"$nulls":3},"Oktoober, November, detsember      Töötaja ajatabel: päevas, nädalas, kuus, aastas"]
["Sisestage korraliste töötundide ja ületundide arv oktoober tabelisse, mis algab lahtris E101. Järgmised juhised on toodud lahtris A110.",{"$nulls":3},"Oktoober","1. nädal","Ületunnid","2. nädal","Ületunnid ","3. nädal","Ületunnid  ","4. nädal","Ületunnid   ","5. nädal","Ületunnid    "]
[{"$nulls":4},"Esmaspäev"]
[{"$nulls":4},"Teisipäev"]
[{"$nulls":4},"Kolmapäev"]
[{"$nulls":4},"Neljapäev"]
[{"$nulls":4},"Reede"]
[{"$nulls":4},"Laupäev"]
[{"$nulls":4},"Pühapäev"]
[{"$nulls":4},"Nädala töötunnid kokku",{"$f":"SUBTOTAL(109,Oktoober[1. nädal])","v":{"v":0,"d":"0.0"}},{"$f":"SUBTOTAL(109,Oktoober[Ületunnid])","v":{"v":0,"d":"0.0"}},{"$f":"SUBTOTAL(109,Oktoober[2. nädal])","v":{"v":0,"d":"0.0"}},{"$f":"SUBTOTAL(109,Oktoober[[Ületunnid ]])","v":{"v":0,"d":"0.0"}},{"$f":"SUBTOTAL(109,Oktoober[3. nädal])","v":{"v":0,"d":"0.0"}},{"$f":"SUBTOTAL(109,Oktoober[[Ületunnid  ]])","v":{"v":0,"d":"0.0"}},{"$f":"SUBTOTAL(109,Oktoober[4. nädal])","v":{"v":0,"d":"0.0"}},{"$f":"SUBTOTAL(109,Oktoober[[Ületunnid   ]])","v":{"v":0,"d":"0.0"}},{"$f":"SUBTOTAL(109,Oktoober[5. nädal])","v":{"v":0,"d":"0.0"}},{"$f":"SUBTOTAL(109,Oktoober[[Ületunnid    ]])","v":{"v":0,"d":"0.0"}}]
["Oktoobri korraliste töötundide koguarv arvutatakse automaatselt lahtris F110 ning oktoobri ületundide koguarv lahtris I110. Järgmised juhised on toodud lahtris A112.",{"$nulls":3},{"$f":"TEXT(DATEVALUE(Oktoober[[#Headers],[Oktoober]]&\" \"&YEAR(TODAY())),\"mmm.\")&\" kokku: Korralised tunnid\"","v":"okt. kokku: Korralised tunnid"},{"$f":"SUM(Oktoober[1. nädal],Oktoober[2. nädal],Oktoober[3. nädal],Oktoober[4. nädal],Oktoober[5. nädal])","v":{"v":0,"d":"0.0"}},{"$f":"TEXT(DATEVALUE(Oktoober[[#Headers],[Oktoober]]&\" \"&YEAR(TODAY())),\"mmm.\")&\" kokku: Ületunnid\"","v":"okt. kokku: Ületunnid"},null,{"$f":"SUM(Oktoober[Ületunnid],Oktoober[[Ületunnid ]],Oktoober[[Ületunnid  ]],Oktoober[[Ületunnid   ]],Oktoober[[Ületunnid    ]])","v":{"v":0,"d":"0.0"}}]
[]
["Sisestage korraliste töötundide ja ületundide arv november tabelisse, mis algab lahtris E112. Järgmised juhised on toodud lahtris A121.",{"$nulls":3},"November","1. nädal","Ületunnid","2. nädal","Ületunnid ","3. nädal","Ületunnid  ","4. nädal","Ületunnid    ","5. nädal","Ületunnid     "]
[{"$nulls":4},"Esmaspäev"]
[{"$nulls":4},"Teisipäev"]
[{"$nulls":4},"Kolmapäev"]
[{"$nulls":4},"Neljapäev"]
[{"$nulls":4},"Reede"]
[{"$nulls":4},"Laupäev"]
[{"$nulls":4},"Pühapäev"]
[{"$nulls":4},"Nädala töötunnid kokku",{"$f":"SUBTOTAL(109,November[1. nädal])","v":{"v":0,"d":"0.0"}},{"$f":"SUBTOTAL(109,November[Ületunnid])","v":{"v":0,"d":"0.0"}},{"$f":"SUBTOTAL(109,November[2. nädal])","v":{"v":0,"d":"0.0"}},{"$f":"SUBTOTAL(109,November[[Ületunnid ]])","v":{"v":0,"d":"0.0"}},{"$f":"SUBTOTAL(109,November[3. nädal])","v":{"v":0,"d":"0.0"}},{"$f":"SUBTOTAL(109,November[[Ületunnid  ]])","v":{"v":0,"d":"0.0"}},{"$f":"SUBTOTAL(109,November[4. nädal])","v":{"v":0,"d":"0.0"}},{"$f":"SUBTOTAL(109,November[[Ületunnid    ]])","v":{"v":0,"d":"0.0"}},{"$f":"SUBTOTAL(109,November[5. nädal])","v":{"v":0,"d":"0.0"}},{"$f":"SUBTOTAL(109,November[[Ületunnid     ]])","v":{"v":0,"d":"0.0"}}]
["Novembri korraliste töötundide koguarv arvutatakse automaatselt lahtris F121 ning novembri ületundide koguarv lahtris I121. Järgmised juhised on toodud lahtris A123.",{"$nulls":3},{"$f":"TEXT(DATEVALUE(November[[#Headers],[November]]&\" \"&YEAR(TODAY())),\"mmm.\")&\" kokku: Korralised tunnid\"","v":"nov. kokku: Korralised tunnid"},{"$f":"SUM(November[1. nädal],November[2. nädal],November[3. nädal],November[4. nädal],November[5. nädal])","v":{"v":0,"d":"0.0"}},{"$f":"TEXT(DATEVALUE(November[[#Headers],[November]]&\" \"&YEAR(TODAY())),\"mmm.\")&\" kokku: Ületunnid\"","v":"nov. kokku: Ületunnid"},null,{"$f":"SUM(November[Ületunnid],November[[Ületunnid ]],November[[Ületunnid  ]],November[[Ületunnid    ]],November[[Ületunnid     ]])","v":{"v":0,"d":"0.0"}}]
[]
["Sisestage korraliste töötundide ja ületundide arv detsember tabelisse, mis algab lahtris E123. Järgmised juhised on toodud lahtris A132.",{"$nulls":3},"Detsember","1. nädal","Ületunnid","2. nädal","Ületunnid ","3. nädal","Ületunnid  ","4. nädal","Ületunnid   ","5. nädal","Ületunnid    "]
[{"$nulls":4},"Esmaspäev"]
[{"$nulls":4},"Teisipäev"]
[{"$nulls":4},"Kolmapäev"]
[{"$nulls":4},"Neljapäev"]
[{"$nulls":4},"Reede"]
[{"$nulls":4},"Laupäev"]
[{"$nulls":4},"Pühapäev"]
[{"$nulls":4},"Nädala töötunnid kokku",{"$f":"SUBTOTAL(109,Detsember[1. nädal])","v":{"v":0,"d":"0.0"}},{"$f":"SUBTOTAL(109,Detsember[Ületunnid])","v":{"v":0,"d":"0.0"}},{"$f":"SUBTOTAL(109,Detsember[2. nädal])","v":{"v":0,"d":"0.0"}},{"$f":"SUBTOTAL(109,Detsember[[Ületunnid ]])","v":{"v":0,"d":"0.0"}},{"$f":"SUBTOTAL(109,Detsember[3. nädal])","v":{"v":0,"d":"0.0"}},{"$f":"SUBTOTAL(109,Detsember[[Ületunnid  ]])","v":{"v":0,"d":"0.0"}},{"$f":"SUBTOTAL(109,Detsember[4. nädal])","v":{"v":0,"d":"0.0"}},{"$f":"SUBTOTAL(109,Detsember[[Ületunnid   ]])","v":{"v":0,"d":"0.0"}},{"$f":"SUBTOTAL(109,Detsember[5. nädal])","v":{"v":0,"d":"0.0"}},{"$f":"SUBTOTAL(109,Detsember[[Ületunnid    ]])","v":{"v":0,"d":"0.0"}}]
["Detsembri korraliste töötundide koguarv arvutatakse automaatselt lahtris F132 ning detsembri ületundide koguarv lahtris I132.",{"$nulls":3},{"$f":"TEXT(DATEVALUE(Detsember[[#Headers],[Detsember]]&\" \"&YEAR(TODAY())),\"mmm.\")&\" kokku: Korralised tunnid\"","v":"dets. kokku: Korralised tunnid"},{"$f":"SUM(Detsember[1. nädal],Detsember[2. nädal],Detsember[3. nädal],Detsember[4. nädal],Detsember[5. nädal])","v":{"v":0,"d":"0.0"}},{"$f":"TEXT(DATEVALUE(Detsember[[#Headers],[Detsember]]&\" \"&YEAR(TODAY())),\"mmm.\")&\" kokku: Ületunnid\"","v":"dets. kokku: Ületunnid"},null,{"$f":"SUM(G124:G130,I124:I130,K124:K130,M124:M130,O124:O130)","v":{"v":0,"d":"0.0"}}]